[Event "DVM U12w 2023"]
[Site "Magdeburg"]
[Date "2023.12.27"]
[Round "1"]
[White "Burchardi, Helena"]
[Black "Korwitz, Pauline"]
[Result "1/2-1/2"]
[WhiteElo "1370"]
[BlackElo "1219"]
[PlyCount "80"]
[EventDate "2022.12.27"]
[EventType "team-tourn"]
[EventRounds "7"]
[EventCountry "GER"]
[TimeControl "40/5400+30:1800+30"]
[WhiteClock "0:38:01"]
[BlackClock "0:25:22"]

1. e4 {[%emt 0:00:04]} c5 {[%emt 0:00:00]} 2. Nf3 {[%emt 0:00:08]} d6 {[%emt 0:00:00]} 3. d4 {[%emt 0:00:12]} cxd4 {[%emt 0:00:06]} 4. Nxd4 {[%emt 0:00:10]} Nf6 {[%emt 0:00:15]} 5. Nc3 {[%emt 0:01:39]} a6 {[%emt 0:00:21]} 6. Bg5 {[%emt 0:00:34]} g6 {[%emt 0:02:06]} 7. Qf3 {[%emt 0:02:55]} Bg7 {[%emt 0:01:57]} 8. Be2 {[%emt 0:02:58]} Nbd7 {[%emt 0:02:06]} 9. O-O {[%emt 0:03:52]} O-O {[%emt 0:02:48]} 10. Qe3 {[%emt 0:01:11]} Qb6 {[%emt 0:06:05]} 11. Nb3 {[%emt 0:04:22]} Qxe3 {[%emt 0:01:51]} 12. Bxe3 {[%emt 0:00:47]} Ne5 {[%emt 0:01:11]} 13. f4 {[%emt 0:01:38]} Neg4 {[%emt 0:02:04]} 14. Bd2 {[%emt 0:02:00]} b5 {[%emt 0:11:50]} 15. a3 {[%emt 0:02:37]} Bb7 {[%emt 0:03:44]} 16. Bf3 {[%emt 0:02:06]} Rab8 {[%emt 0:04:46]} 17. Rae1 {[%emt 0:02:28]} Nh6 {[%emt 0:02:12]} 18. Na5 {[%emt 0:02:25]} Ba8 {[%emt 0:01:11]} 19. Na2 {[%emt 0:01:00]} Nd7 {[%emt 0:02:43]} 20. g4 {[%emt 0:04:34]} Bd4+ {[%emt 0:04:29]} 21. Be3 {[%emt 0:01:44]} Bxe3+ {[%emt 0:00:58]} 22. Rxe3 {[%emt 0:00:15]} f6 {[%emt 0:00:53]} 23. Nb4 {[%emt 0:01:49]} Nc5 {[%emt 0:02:41]} 24. Nd5 {[%emt 0:03:06]} Rfe8 {[%emt 0:03:00]} 25. Nc7 {[%emt 0:00:26]} Rec8 {[%emt 0:00:53]} 26. Nxa8 {[%emt 0:01:01]} Rxa8 {[%emt 0:00:18]} 27. b4 {[%emt 0:01:58]} Nd7 {[%emt 0:01:39]} 28. e5 {[%emt 0:00:59]} Ra7 {[%emt 0:02:47]} 29. exd6 {[%emt 0:03:07]} exd6 {[%emt 0:01:06]} 30. Bd5+ {[%emt 0:00:28]} Kf8 {[%emt 0:00:55]} 31. Be6 {[%emt 0:00:40]} Re8 {[%emt 0:01:48]} 32. Rfe1 {[%emt 0:02:15]} Rc7 {[%emt 0:03:50]} 33. R1e2 {[%emt 0:03:16]} Nb8 {[%emt 0:02:57]} 34. g5 {[%emt 0:01:53]} fxg5 {[%emt 0:01:43]} 35. fxg5 {[%emt 0:00:15]} Nf7 {[%emt 0:00:39]} 36. Rf3 {[%emt 0:02:18]} Rce7 {[%emt 0:01:56]} 37. Ref2 {[%emt 0:02:59]} Rxe6 {[%emt 0:02:04]} 38. Rxf7+ {[%emt 0:00:09]} Kg8 {[%emt 0:00:15]} 39. Rc7 {[%emt 0:03:26]} Re5 {[%emt 0:01:47]} 40. h4 {[%emt 0:02:45]} Re4 {[%emt 0:01:14] normal} 1/2-1/2

[Event "DVM U12w 2023"]
[Site "Magdeburg"]
[Date "2023.12.27"]
[Round "1"]
[White "Will, Elina"]
[Black "Gerth, Lydia"]
[Result "1-0"]
[WhiteElo "1325"]
[BlackElo "1214"]
[PlyCount "117"]
[EventDate "2022.12.27"]
[EventType "team-tourn"]
[EventRounds "7"]
[EventCountry "GER"]
[TimeControl "40/5400+30:1800+30"]
[WhiteClock "1:37:36"]
[BlackClock "0:53:48"]

1. e4 {[%emt 0:32:54]} e6 {[%emt 0:00:02]} 2. d4 {[%emt 0:00:00]} d5 {[%emt 0:00:07]} 3. exd5 {[%emt 0:00:00]} exd5 {[%emt 0:00:06]} 4. Bd3 {[%emt 0:00:00]} Bd6 {[%emt 0:00:32]} 5. Nf3 {[%emt 0:00:00]} Nf6 {[%emt 0:00:10]} 6. Bg5 {[%emt 0:00:00]} h6 {[%emt 0:00:53]} 7. Bxf6 {[%emt 0:00:00]} Qxf6 {[%emt 0:00:09]} 8. Nbd2 {[%emt 0:00:00]} O-O {[%emt 0:00:34]} 9. O-O {[%emt 0:00:00]} Bg4 {[%emt 0:01:20]} 10. c3 {[%emt 0:00:00]} Nc6 {[%emt 0:02:01]} 11. Qb3 {[%emt 0:00:00]} Ne7 {[%emt 0:04:31]} 12. h3 {[%emt 0:00:00]} Bc8 {[%emt 0:01:53]} 13. Rfe1 {[%emt 0:00:00]} c6 {[%emt 0:03:29]} 14. Re2 {[%emt 0:00:00]} Rb8 {[%emt 0:01:43]} 15. Rae1 {[%emt 0:00:00]} b5 {[%emt 0:04:31]} 16. Qc2 {[%emt 0:00:00]} Bf5 {[%emt 0:04:29]} 17. Bxf5 {[%emt 0:00:00]} Nxf5 {[%emt 0:00:08]} 18. Ne5 {[%emt 0:00:00]} Rb7 {[%emt 0:08:13]} 19. Ndf3 {[%emt 0:00:00]} Rc7 {[%emt 0:03:16]} 20. Qd3 {[%emt 0:00:00]} a6 {[%emt 0:02:19]} 21. b4 {[%emt 0:00:00]} Ra8 {[%emt 0:01:37]} 22. Ng4 {[%emt 0:00:00]} Qg6 {[%emt 0:00:43]} 23. Re8+ {[%emt 0:00:00]} Rxe8 {[%emt 0:00:49]} 24. Rxe8+ {[%emt 0:00:00]} Bf8 {[%emt 0:02:34]} 25. Ra8 {[%emt 0:00:00]} Nh4 {[%emt 0:02:58]} 26. Qxg6 {[%emt 0:00:00]} Nxf3+ {[%emt 0:00:09]} 27. gxf3 {[%emt 0:00:00]} fxg6 {[%emt 0:00:05]} 28. Ne5 {[%emt 0:00:00]} g5 {[%emt 0:00:40]} 29. Rxa6 {[%emt 0:00:00]} Bd6 {[%emt 0:01:59]} 30. Nxc6 {[%emt 0:00:00]} Rb7 {[%emt 0:02:37]} 31. Na5 {[%emt 0:00:00]} Rd7 {[%emt 0:00:30]} 32. Rb6 {[%emt 0:00:00]} Bc7 {[%emt 0:00:58]} 33. Rxb5 {[%emt 0:00:00]} Kf8 {[%emt 0:01:00]} 34. a4 {[%emt 0:00:00]} Ke8 {[%emt 0:00:09]} 35. Nc6 {[%emt 0:00:00]} Rd6 {[%emt 0:00:41]} 36. Ne5 {[%emt 0:00:00]} Ke7 {[%emt 0:01:33]} 37. a5 {[%emt 0:00:00]} h5 {[%emt 0:01:43]} 38. Rb7 {[%emt 0:00:00]} Ra6 {[%emt 0:01:20]} 39. Rxc7+ {[%emt 0:00:12]} Kd6 {[%emt 0:00:08]} 40. Rxg7 {[%emt 0:00:00]} g4 {[%emt 0:00:10]} 41. fxg4 {[%emt 0:16:19]} hxg4 {[%emt 0:30:14]} 42. Rg6+ {[%emt 0:00:02]} Kc7 {[%emt 0:00:13]} 43. Rxa6 {[%emt 0:00:04]} gxh3 {[%emt 0:00:09]} 44. Kh2 {[%emt 0:00:04]} Kb7 {[%emt 0:00:11]} 45. Rd6 {[%emt 0:00:05]} Kc7 {[%emt 0:00:10]} 46. Rxd5 {[%emt 0:00:05]} Kb7 {[%emt 0:00:08]} 47. Kxh3 {[%emt 0:00:02]} Ka6 {[%emt 0:00:06]} 48. c4 {[%emt 0:00:14]} Kb7 {[%emt 0:00:07]} 49. b5 {[%emt 0:00:04]} Kc7 {[%emt 0:00:05]} 50. a6 {[%emt 0:00:05]} Kb6 {[%emt 0:00:13]} 51. Rd6+ {[%emt 0:00:11]} Ka7 {[%emt 0:00:08]} 52. Nc6+ {[%emt 0:00:12]} Kb6 {[%emt 0:00:10]} 53. d5 {[%emt 0:00:09]} Kc7 {[%emt 0:00:10]} 54. Rh6 {[%emt 0:00:07]} Kb6 {[%emt 0:00:05]} 55. a7 {[%emt 0:00:38]} Kb7 {[%emt 0:00:09]} 56. Rh8 {[%emt 0:00:09]} Kb6 {[%emt 0:00:15]} 57. a8=Q {[%emt 0:00:09]} Kc7 {[%emt 0:00:12]} 58. Qb8+ {[%emt 0:00:13]} Kd7 {[%emt 0:00:08]} 59. Rh7# {[%emt 0:00:26] normal} 1-0

[Event "DVM U12w 2023"]
[Site "Magdeburg"]
[Date "2023.12.27"]
[Round "1"]
[White "Shynkar, Daria"]
[Black "Mersmann, Jasmin"]
[Result "1/2-1/2"]
[WhiteElo "1316"]
[BlackElo "1131"]
[PlyCount "74"]
[EventDate "2022.12.27"]
[EventType "team-tourn"]
[EventRounds "7"]
[EventCountry "GER"]
[TimeControl "40/5400+30:1800+30"]
[WhiteClock "0:31:37"]
[BlackClock "0:52:18"]

1. d4 {[%emt 0:00:02]} d5 {[%emt 0:00:08]} 2. c4 {[%emt 0:00:04]} dxc4 {[%emt 0:00:25]} 3. Nf3 {[%emt 0:00:05]} Bg4 {[%emt 0:00:25]} 4. Ne5 {[%emt 0:04:31]} Bf5 {[%emt 0:00:55]} 5. Nc3 {[%emt 0:05:14]} Nd7 {[%emt 0:01:01]} 6. Nxd7 {[%emt 0:00:55]} Qxd7 {[%emt 0:00:13]} 7. e4 {[%emt 0:00:17]} Bg6 {[%emt 0:00:44]} 8. Bxc4 {[%emt 0:01:34]} e6 {[%emt 0:01:47]} 9. O-O {[%emt 0:01:36]} Bb4 {[%emt 0:00:50]} 10. Re1 {[%emt 0:02:41]} O-O-O {[%emt 0:03:15]} 11. Bg5 {[%emt 0:04:58]} Nf6 {[%emt 0:01:53]} 12. e5 {[%emt 0:05:57]} h6 {[%emt 0:01:13]} 13. Be3 {[%emt 0:01:53]} Ne4 {[%emt 0:02:47]} 14. Qb3 {[%emt 0:01:50]} Ba5 {[%emt 0:10:39]} 15. Red1 {[%emt 0:04:10]} c6 {[%emt 0:06:53]} 16. Nxe4 {[%emt 0:04:38]} Bxe4 {[%emt 0:01:30]} 17. Qa4 {[%emt 0:01:04]} Qc7 {[%emt 0:02:05]} 18. b4 {[%emt 0:02:42]} b5 {[%emt 0:06:13]} 19. Bxb5 {[%emt 0:01:34]} cxb5 {[%emt 0:00:31]} 20. Qxa5 {[%emt 0:00:34]} Qxa5 {[%emt 0:00:35]} 21. bxa5 {[%emt 0:00:01]} Kb7 {[%emt 0:00:30]} 22. f3 {[%emt 0:02:23]} Bd5 {[%emt 0:00:38]} 23. Rdb1 {[%emt 0:00:46]} Bc4 {[%emt 0:00:10]} 24. a4 {[%emt 0:00:46]} Rd5 {[%emt 0:03:23]} 25. axb5 {[%emt 0:01:44]} Rxb5 {[%emt 0:01:10]} 26. Rxb5+ {[%emt 0:00:28]} Bxb5 {[%emt 0:00:10]} 27. Rd1 {[%emt 0:04:48]} Rd8 {[%emt 0:01:08]} 28. Kf2 {[%emt 0:02:19]} Ka6 {[%emt 0:00:18]} 29. Ra1 {[%emt 0:01:17]} Rd5 {[%emt 0:00:28]} 30. f4 {[%emt 0:05:57]} Bd7 {[%emt 0:00:52]} 31. h3 {[%emt 0:04:42]} Rxa5 {[%emt 0:00:20]} 32. Rxa5+ {[%emt 0:00:05]} Kxa5 {[%emt 0:00:22]} 33. d5 {[%emt 0:00:06]} exd5 {[%emt 0:00:15]} 34. Bxa7 {[%emt 0:00:06]} Kb5 {[%emt 0:00:18]} 35. Ke3 {[%emt 0:00:57]} Kc4 {[%emt 0:00:06]} 36. Bd4 {[%emt 0:02:12]} h5 {[%emt 0:02:09]} 37. Bb6 {[%emt 0:02:27]} g6 {[%emt 0:00:23] normal} 1/2-1/2

[Event "DVM U12w 2023"]
[Site "Magdeburg"]
[Date "2023.12.27"]
[Round "1"]
[White "Winkler, Frida"]
[Black "Busch, Lara Sophie"]
[Result "1-0"]
[WhiteElo "1298"]
[BlackElo "1330"]
[PlyCount "107"]
[EventDate "2022.12.27"]
[EventType "team-tourn"]
[EventRounds "7"]
[EventCountry "GER"]
[TimeControl "40/5400+30:1800+30"]
[WhiteClock "1:07:01"]
[BlackClock "0:49:24"]

1. e4 {[%emt 0:00:01]} e5 {[%emt 0:00:06]} 2. Nf3 {[%emt 0:00:08]} Nc6 {[%emt 0:00:07]} 3. Bc4 {[%emt 0:00:11]} Bc5 {[%emt 0:00:46]} 4. O-O {[%emt 0:00:08]} Nf6 {[%emt 0:00:17]} 5. d4 {[%emt 0:00:07]} Bxd4 {[%emt 0:01:27]} 6. Nxd4 {[%emt 0:00:34]} Nxd4 {[%emt 0:02:18]} 7. Bg5 {[%emt 0:00:09]} h6 {[%emt 0:01:01]} 8. Bh4 {[%emt 0:00:25]} b5 {[%emt 0:02:59]} 9. Bd3 {[%emt 0:02:13]} a6 {[%emt 0:05:21]} 10. Nd2 {[%emt 0:02:23]} Bb7 {[%emt 0:00:31]} 11. Nf3 {[%emt 0:00:38]} Nxf3+ {[%emt 0:02:23]} 12. Qxf3 {[%emt 0:00:17]} g5 {[%emt 0:04:35]} 13. Bg3 {[%emt 0:00:11]} d6 {[%emt 0:01:06]} 14. Rfe1 {[%emt 0:01:39]} Qe7 {[%emt 0:01:28]} 15. c4 {[%emt 0:06:22]} h5 {[%emt 0:02:54]} 16. h3 {[%emt 0:00:39]} g4 {[%emt 0:01:05]} 17. Qf5 {[%emt 0:03:09]} h4 {[%emt 0:04:27]} 18. Bh2 {[%emt 0:00:30]} gxh3 {[%emt 0:01:12]} 19. Qxh3 {[%emt 0:00:15]} bxc4 {[%emt 0:00:49]} 20. Bxc4 {[%emt 0:02:34]} Nxe4 {[%emt 0:02:59]} 21. Qf3 {[%emt 0:04:37]} Nc5 {[%emt 0:01:53]} 22. Bd5 {[%emt 0:03:23]} Bxd5 {[%emt 0:01:17]} 23. Qxd5 {[%emt 0:00:22]} Qd8 {[%emt 0:01:30]} 24. Rxe5+ {[%emt 0:00:54]} dxe5 {[%emt 0:01:05]} 25. Qxe5+ {[%emt 0:00:07]} Ne6 {[%emt 0:01:46]} 26. Qxh8+ {[%emt 0:00:20]} Nf8 {[%emt 0:01:20]} 27. Re1+ {[%emt 0:00:28]} Kd7 {[%emt 0:00:25]} 28. Rd1+ {[%emt 0:00:07]} Ke7 {[%emt 0:00:39]} 29. Qxh4+ {[%emt 0:00:17]} f6 {[%emt 0:00:41]} 30. Rxd8 {[%emt 0:00:42]} Rxd8 {[%emt 0:00:07]} 31. Bxc7 {[%emt 0:00:47]} Rd7 {[%emt 0:01:56]} 32. Bb6 {[%emt 0:00:45]} Ne6 {[%emt 0:02:43]} 33. g4 {[%emt 0:03:25]} Ng5 {[%emt 0:00:42]} 34. Qg3 {[%emt 0:02:25]} Kf7 {[%emt 0:01:31]} 35. Be3 {[%emt 0:01:21]} Ne4 {[%emt 0:01:22]} 36. Qf4 {[%emt 0:00:39]} Ng5 {[%emt 0:00:53]} 37. Kg2 {[%emt 0:01:04]} Kg7 {[%emt 0:00:45]} 38. Bd4 {[%emt 0:00:35]} Rxd4 {[%emt 0:01:07]} 39. Qxd4 {[%emt 0:00:13]} Nf7 {[%emt 0:01:19]} 40. Qa7 {[%emt 0:00:16]} a5 {[%emt 0:00:40]} 41. Qxa5 {[%emt 0:30:12]} Ne5 {[%emt 0:30:18]} 42. b4 {[%emt 0:00:26]} Nxg4 {[%emt 0:00:43]} 43. b5 {[%emt 0:00:09]} Ne5 {[%emt 0:00:13]} 44. b6 {[%emt 0:00:10]} Kg6 {[%emt 0:00:32]} 45. b7 {[%emt 0:00:22]} Nc6 {[%emt 0:00:48]} 46. Qc7 {[%emt 0:00:12]} Nb4 {[%emt 0:01:05]} 47. b8=Q {[%emt 0:00:31]} Na6 {[%emt 0:00:39]} 48. Qg3+ {[%emt 0:00:40]} Kf5 {[%emt 0:00:19]} 49. Qb5+ {[%emt 0:00:00]} Nc5 {[%emt 0:00:14]} 50. Qxc5+ {[%emt 0:00:24]} Ke6 {[%emt 0:00:12]} 51. Qgd6+ {[%emt 0:00:55]} Kf7 {[%emt 0:00:19]} 52. Qh5+ {[%emt 0:00:09]} Kg7 {[%emt 0:00:27]} 53. Qe7+ {[%emt 0:00:20]} Kg8 {[%emt 0:00:15]} 54. Qhh7# {[%emt 0:00:39] normal} 1-0

[Event "DVM U12w 2023"]
[Site "Magdeburg"]
[Date "2023.12.27"]
[Round "1"]
[White "Fruth, Julia"]
[Black "John, Linnea"]
[Result "1/2-1/2"]
[WhiteElo "1296"]
[BlackElo "1393"]
[PlyCount "48"]
[EventDate "2022.12.27"]
[EventType "team-tourn"]
[EventRounds "7"]
[EventCountry "GER"]
[TimeControl "40/5400+30:1800+30"]
[WhiteClock "0:12:57"]
[BlackClock "0:11:21"]

1. e4 {[%emt 0:00:03]} c5 {[%emt 0:00:06]} 2. Nf3 {[%emt 0:00:17]} Nc6 {[%emt 0:00:08]} 3. Bb5 {[%emt 0:00:27]} e6 {[%emt 0:00:19]} 4. Bxc6 {[%emt 0:02:37]} bxc6 {[%emt 0:00:18]} 5. d3 {[%emt 0:01:32]} d5 {[%emt 0:00:49]} 6. O-O {[%emt 0:02:23]} Be7 {[%emt 0:05:13]} 7. Re1 {[%emt 0:05:58]} Nf6 {[%emt 0:02:05]} 8. Nc3 {[%emt 0:07:03]} O-O {[%emt 0:01:55]} 9. exd5 {[%emt 0:09:02]} cxd5 {[%emt 0:01:27]} 10. d4 {[%emt 0:01:37]} Bd7 {[%emt 0:09:13]} 11. Be3 {[%emt 0:03:28]} Ng4 {[%emt 0:05:17]} 12. Qe2 {[%emt 0:03:30]} Qc7 {[%emt 0:06:44]} 13. dxc5 {[%emt 0:05:35]} Nxe3 {[%emt 0:03:45]} 14. Qxe3 {[%emt 0:00:26]} Bxc5 {[%emt 0:01:01]} 15. Qd3 {[%emt 0:02:19]} Qb6 {[%emt 0:06:03]} 16. Re2 {[%emt 0:03:38]} Qxb2 {[%emt 0:11:31]} 17. Rb1 {[%emt 0:01:46]} Qa3 {[%emt 0:00:34]} 18. Ng5 {[%emt 0:03:12]} g6 {[%emt 0:02:13]} 19. Qh3 {[%emt 0:02:07]} h5 {[%emt 0:02:24]} 20. Qd3 {[%emt 0:04:23]} Qa5 {[%emt 0:09:42]} 21. Ree1 {[%emt 0:05:22]} Bb4 {[%emt 0:08:44]} 22. Rb3 {[%emt 0:08:39]} Ba4 {[%emt 0:03:56]} 23. a3 {[%emt 0:09:53]} Be7 {[%emt 0:04:37]} 24. Nxe6 {[%emt 0:04:16]} fxe6 {[%emt 0:03:05] normal} 1/2-1/2

[Event "DVM U12w 2023"]
[Site "Magdeburg"]
[Date "2023.12.27"]
[Round "1"]
[White "Grunert, Greta"]
[Black "Stepanova, Anhelina"]
[Result "1-0"]
[WhiteElo "1288"]
[BlackElo "1172"]
[PlyCount "65"]
[EventDate "2022.12.27"]
[EventType "team-tourn"]
[EventRounds "7"]
[EventCountry "GER"]
[TimeControl "40/5400+30:1800+30"]
[WhiteClock "0:08:21"]
[BlackClock "0:55:13"]

1. e4 {[%emt 0:00:03]} e6 {[%emt 0:01:51]} 2. d4 {[%emt 0:00:24]} d5 {[%emt 0:00:46]} 3. Nd2 {[%emt 0:00:31]} c5 {[%emt 0:01:20]} 4. Ngf3 {[%emt 0:08:09]} Nc6 {[%emt 0:02:59]} 5. Bb5 {[%emt 0:05:17]} Bd7 {[%emt 0:01:11]} 6. dxc5 {[%emt 0:03:01]} Bxc5 {[%emt 0:02:07]} 7. O-O {[%emt 0:03:04]} a6 {[%emt 0:00:42]} 8. Ba4 {[%emt 0:01:46]} Nge7 {[%emt 0:02:08]} 9. Re1 {[%emt 0:03:23]} O-O {[%emt 0:02:15]} 10. c3 {[%emt 0:05:53]} b5 {[%emt 0:01:25]} 11. Bc2 {[%emt 0:01:34]} Qb6 {[%emt 0:02:15]} 12. Re2 {[%emt 0:02:25]} Ng6 {[%emt 0:00:46]} 13. Nb3 {[%emt 0:04:19]} Nce7 {[%emt 0:02:10]} 14. Nxc5 {[%emt 0:01:26]} Qxc5 {[%emt 0:00:21]} 15. Be3 {[%emt 0:02:02]} Qc6 {[%emt 0:01:01]} 16. Qd3 {[%emt 0:07:47]} Qb7 {[%emt 0:00:52]} 17. Bd2 {[%emt 0:06:24]} b4 {[%emt 0:03:38]} 18. exd5 {[%emt 0:03:59]} exd5 {[%emt 0:01:19]} 19. Rxe7 {[%emt 0:01:12]} f6 {[%emt 0:02:56]} 20. Re3 {[%emt 0:04:11]} Rac8 {[%emt 0:04:26]} 21. Bb3 {[%emt 0:02:18]} Kh8 {[%emt 0:00:39]} 22. Bxd5 {[%emt 0:03:12]} Qb8 {[%emt 0:00:44]} 23. Bb3 {[%emt 0:01:08]} Rc7 {[%emt 0:05:11]} 24. cxb4 {[%emt 0:04:25]} Bb5 {[%emt 0:00:38]} 25. Qd6 {[%emt 0:04:57]} Rd8 {[%emt 0:00:40]} 26. Qg3 {[%emt 0:03:33]} Qc8 {[%emt 0:00:05]} 27. Be6 {[%emt 0:01:24]} Qb7 {[%emt 0:01:47]} 28. Rc3 {[%emt 0:02:45]} Rxc3 {[%emt 0:00:27]} 29. Bxc3 {[%emt 0:00:52]} Qe7 {[%emt 0:00:32]} 30. Re1 {[%emt 0:01:10]} Nf8 {[%emt 0:01:08]} 31. Bb3 {[%emt 0:02:04]} Qa7 {[%emt 0:02:09]} 32. Bxf6 {[%emt 0:03:19]} Ng6 {[%emt 0:00:49]} 33. Bxd8 {[%emt 0:00:42] normal} 1-0

[Event "DVM U12w 2023"]
[Site "Magdeburg"]
[Date "2023.12.27"]
[Round "1"]
[White "Kuehne, Malin"]
[Black "Böhrer, Lea Marie"]
[Result "1-0"]
[WhiteElo "1264"]
[BlackElo "939"]
[PlyCount "73"]
[EventDate "2022.12.27"]
[EventType "team-tourn"]
[EventRounds "7"]
[EventCountry "GER"]
[TimeControl "40/5400+30:1800+30"]
[WhiteClock "1:10:46"]
[BlackClock "1:19:51"]

1. d4 {[%emt 0:00:02]} d5 {[%emt 0:00:16]} 2. c4 {[%emt 0:00:06]} Nf6 {[%emt 0:00:35]} 3. Nc3 {[%emt 0:00:33]} Be6 {[%emt 0:00:17]} 4. cxd5 {[%emt 0:01:00]} Nxd5 {[%emt 0:00:17]} 5. Nf3 {[%emt 0:03:09]} Nxc3 {[%emt 0:00:28]} 6. bxc3 {[%emt 0:00:11]} Bd5 {[%emt 0:00:29]} 7. e3 {[%emt 0:00:47]} Nc6 {[%emt 0:00:18]} 8. c4 {[%emt 0:01:20]} Be4 {[%emt 0:00:37]} 9. Bd3 {[%emt 0:01:34]} f5 {[%emt 0:00:43]} 10. Bxe4 {[%emt 0:01:18]} fxe4 {[%emt 0:00:22]} 11. Nd2 {[%emt 0:00:40]} e5 {[%emt 0:01:31]} 12. d5 {[%emt 0:02:17]} Na5 {[%emt 0:01:16]} 13. Qc2 {[%emt 0:01:48]} b5 {[%emt 0:00:44]} 14. Qxe4 {[%emt 0:02:40]} Qf6 {[%emt 0:01:35]} 15. O-O {[%emt 0:02:05]} Bb4 {[%emt 0:01:16]} 16. cxb5 {[%emt 0:01:09]} O-O {[%emt 0:01:10]} 17. Qxb4 {[%emt 0:00:45]} e4 {[%emt 0:01:04]} 18. Rb1 {[%emt 0:00:34]} Nb7 {[%emt 0:00:09]} 19. Nxe4 {[%emt 0:01:38]} Qf5 {[%emt 0:00:38]} 20. Ba3 {[%emt 0:01:43]} Rf7 {[%emt 0:01:00]} 21. Qd4 {[%emt 0:04:55]} c5 {[%emt 0:01:46]} 22. bxc6 {[%emt 0:01:07]} Qc8 {[%emt 0:02:50]} 23. cxb7 {[%emt 0:00:51]} Qd8 {[%emt 0:01:15]} 24. bxa8=Q {[%emt 0:00:29]} Qxa8 {[%emt 0:00:14]} 25. d6 {[%emt 0:00:38]} Qd8 {[%emt 0:00:57]} 26. Nc5 {[%emt 0:00:18]} Rf8 {[%emt 0:01:16]} 27. Ne6 {[%emt 0:00:38]} Qd7 {[%emt 0:01:04]} 28. Nxf8 {[%emt 0:00:29]} Kxf8 {[%emt 0:01:00]} 29. Rb8+ {[%emt 0:00:45]} Kf7 {[%emt 0:00:11]} 30. Qd5+ {[%emt 0:00:10]} Kg6 {[%emt 0:00:31]} 31. Qe4+ {[%emt 0:00:44]} Kf7 {[%emt 0:00:17]} 32. Qe7+ {[%emt 0:00:09]} Qxe7 {[%emt 0:00:18]} 33. dxe7 {[%emt 0:00:05]} Kf6 {[%emt 0:01:08]} 34. e8=Q {[%emt 0:00:31]} g6 {[%emt 0:00:37]} 35. Qe7+ {[%emt 0:00:10]} Kf5 {[%emt 0:00:16]} 36. Rb5+ {[%emt 0:00:08]} Kg4 {[%emt 0:00:14]} 37. Qg5# {[%emt 0:00:48] normal} 1-0

[Event "DVM U12w 2023"]
[Site "Magdeburg"]
[Date "2023.12.27"]
[Round "1"]
[White "Roessling, Laura Marie"]
[Black "Oschinski, Mathilda"]
[Result "0-1"]
[WhiteElo "1232"]
[BlackElo "1155"]
[PlyCount "68"]
[EventDate "2022.12.27"]
[EventType "team-tourn"]
[EventRounds "7"]
[EventCountry "GER"]
[TimeControl "40/5400+30:1800+30"]
[WhiteClock "0:55:57"]
[BlackClock "0:15:43"]

1. e4 {[%emt 0:00:03]} c5 {[%emt 0:00:08]} 2. Nf3 {[%emt 0:00:06]} Nc6 {[%emt 0:00:11]} 3. d4 {[%emt 0:00:53]} cxd4 {[%emt 0:00:15]} 4. Nxd4 {[%emt 0:00:09]} g6 {[%emt 0:00:10]} 5. Nc3 {[%emt 0:02:21]} Bg7 {[%emt 0:00:15]} 6. Be3 {[%emt 0:00:15]} Nf6 {[%emt 0:00:36]} 7. f3 {[%emt 0:03:39]} O-O {[%emt 0:06:39]} 8. Qd2 {[%emt 0:07:22]} d5 {[%emt 0:03:05]} 9. O-O-O {[%emt 0:02:33]} a6 {[%emt 0:03:46]} 10. Nxc6 {[%emt 0:01:49]} bxc6 {[%emt 0:01:57]} 11. exd5 {[%emt 0:00:22]} Bb7 {[%emt 0:08:55]} 12. dxc6 {[%emt 0:02:43]} Qxd2+ {[%emt 0:03:06]} 13. Rxd2 {[%emt 0:00:42]} Bxc6 {[%emt 0:00:41]} 14. Bc4 {[%emt 0:02:42]} a5 {[%emt 0:04:16]} 15. Re2 {[%emt 0:06:21]} e6 {[%emt 0:06:15]} 16. Bc5 {[%emt 0:00:49]} Rfc8 {[%emt 0:03:21]} 17. Ba3 {[%emt 0:01:05]} Bh6+ {[%emt 0:08:48]} 18. Kb1 {[%emt 0:01:10]} Rab8 {[%emt 0:02:19]} 19. Ba6 {[%emt 0:01:36]} Rd8 {[%emt 0:10:28]} 20. Be7 {[%emt 0:02:34]} Nd5 {[%emt 0:04:14]} 21. Nxd5 {[%emt 0:01:20]} Rxd5 {[%emt 0:00:00]} 22. Bd3 {[%emt 0:01:55]} Bb5 {[%emt 0:02:47]} 23. Bxb5 {[%emt 0:01:35]} Rdxb5 {[%emt 0:01:19]} 24. Ba3 {[%emt 0:00:08]} Bf8 {[%emt 0:03:23]} 25. Bxf8 {[%emt 0:00:21]} Rxb2+ {[%emt 0:01:32]} 26. Ka1 {[%emt 0:00:10]} Kxf8 {[%emt 0:00:12]} 27. Rd1 {[%emt 0:01:22]} Kg7 {[%emt 0:00:56]} 28. Red2 {[%emt 0:01:25]} a4 {[%emt 0:02:59]} 29. c3 {[%emt 0:00:25]} a3 {[%emt 0:01:00]} 30. c4 {[%emt 0:01:11]} f5 {[%emt 0:04:26]} 31. c5 {[%emt 0:00:45]} e5 {[%emt 0:01:52]} 32. c6 {[%emt 0:00:28]} e4 {[%emt 0:01:01]} 33. fxe4 {[%emt 0:01:07]} fxe4 {[%emt 0:00:17]} 34. c7 {[%emt 0:00:07]} Rc8 {[%emt 0:00:38] normal} 0-1

[Event "DVM U12w 2023"]
[Site "Magdeburg"]
[Date "2023.12.27"]
[Round "1"]
[White "Berger, Jennifer"]
[Black "Ulianova, Anna"]
[Result "1/2-1/2"]
[WhiteElo "1210"]
[BlackElo "1036"]
[PlyCount "60"]
[EventDate "2022.12.27"]
[EventType "team-tourn"]
[EventRounds "7"]
[EventCountry "GER"]
[TimeControl "40/5400+30:1800+30"]
[WhiteClock "1:02:10"]

1. e4 {[%emt 0:00:05]} e5 {[%emt 0:00:06]} 2. Nf3 {[%emt 0:00:32]} Nc6 {[%emt 0:00:07]} 3. d4 {[%emt 0:00:15]} exd4 {[%emt 0:00:13]} 4. Nxd4 {[%emt 0:00:22]} Bc5 {[%emt 0:00:18]} 5. Nb3 {[%emt 0:00:25]} Bb6 {[%emt 0:00:15]} 6. Bd3 {[%emt 0:01:38]} Nf6 {[%emt 0:00:33]} 7. Bg5 {[%emt 0:00:26]} h6 {[%emt 0:00:16]} 8. Bh4 {[%emt 0:00:12]} d6 {[%emt 0:00:22]} 9. Nc3 {[%emt 0:00:23]} Be6 {[%emt 0:01:41]} 10. O-O {[%emt 0:01:05]} g5 {[%emt 0:00:52]} 11. Bg3 {[%emt 0:02:04]} h5 {[%emt 0:00:34]} 12. h3 {[%emt 0:05:31]} h4 {[%emt 0:00:47]} 13. Bh2 {[%emt 0:00:30]} g4 {[%emt 0:00:11]} 14. hxg4 {[%emt 0:01:55]} Nxg4 {[%emt 0:03:24]} 15. Bf4 {[%emt 0:01:06]} h3 {[%emt 0:00:28]} 16. g3 {[%emt 0:01:34]} Nf6 {[%emt 0:07:10]} 17. Re1 {[%emt 0:00:38]} Ng4 {[%emt 0:04:54]} 18. Rf1 {[%emt 0:05:25]} Qd7 {[%emt 0:17:21]} 19. Nd5 {[%emt 0:02:12]} O-O-O {[%emt 0:03:33]} 20. a4 {[%emt 0:01:39]} a5 {[%emt 0:01:05]} 21. Nxb6+ {[%emt 0:05:17]} cxb6 {[%emt 0:00:00]} 22. f3 {[%emt 0:01:33]} Nf6 {[%emt 0:01:54]} 23. Be3 {[%emt 0:00:29]} Rdg8 {[%emt 0:01:29]} 24. Bf2 {[%emt 0:02:09]} Nh5 {[%emt 0:00:33]} 25. Kh2 {[%emt 0:01:05]} f5 {[%emt 0:02:21]} 26. exf5 {[%emt 0:01:15]} Bxf5 {[%emt 0:00:27]} 27. Bc4 {[%emt 0:00:50]} Rg7 {[%emt 0:01:48]} 28. Qe2 {[%emt 0:01:36]} d5 {[%emt 0:01:26]} 29. Ba6 {[%emt 0:00:43]} Rhg8 {[%emt 0:00:49]} 30. Rg1 {[%emt 0:00:26]} Qd6 {[%emt 0:50:33] normal} 1/2-1/2